fUST/lending_fUST_20250222
["ID","MTS","AMOUNT","RATE_DAILY","PERIOD"]
[354042284,1740198548132,-3938.27393572,0.00012639,5]
[354042285,1740198548156,-3270.78162321,0.00012639,2]
[354042286,1740198550093,-30941.05499439,0.00012698,5]
[354042287,1740198550122,-7259.54892178,0.00012698,2]
[354042288,1740198573111,-15470.5274972,0.00012698,5]
[354042289,1740198573134,-11874.41592888,0.00012698,2]
[354042290,1740198574094,-2885.8158,0.00012698,2]
[354042323,1740198632205,-511.0590637,0.00012539,2]
[354042324,1740198632220,-2880.21934934,0.00012698,2]
[354042325,1740198632230,-179.26509345,0.000129,2]
[354042326,1740198632239,-5854.87547813,0.00013226,2]
[354042327,1740198632249,-179.2650934,0.00013355,2]
[354042328,1740198632258,-443.11329432,0.00013511,2]
[354042329,1740198632268,-1000.0,0.000136,2]
[354042330,1740198632278,-1000.0,0.000136,3]
[354042331,1740198632287,-399.95187127,0.00013698,2]
[354042332,1740198632298,-100.04812873,0.00013698,2]
[354042333,1740198632307,-500.0,0.00013698,2]
[354042334,1740198632317,-205.37780479,0.00013698,2]
[354042335,1740198632326,-373.91438934,0.00013698,2]
[354042336,1740198632335,-404.49891212,0.00013698,2]
[354042337,1740198632345,-500.0,0.00013698,2]
[354042338,1740198632356,-605.5,0.00013698,2]
[354042339,1740198632366,-5807.91,0.00013698,2]
[354042340,1740198632375,-500.0,0.00013698,2]
[354042341,1740198632385,-500.0,0.00013698,2]
[354042342,1740198632395,-1034.75,0.00013698,2]
[354042343,1740198632404,-473.83060089,0.00013698,2]
[354042344,1740198632414,-500.0,0.00013698,2]
[354042345,1740198632423,-500.0,0.00013698,2]
[354042346,1740198632432,-617.24,0.00013698,2]
[354042347,1740198632442,-500.0,0.00013698,2]
[354042348,1740198632454,-811.98,0.00013698,2]
[354042349,1740198632463,-506.71325543,0.00013698,2]
[354042350,1740198632472,-2315.25,0.00013698,2]
[354042351,1740198632482,-500.0,0.00013698,2]
[354042352,1740198632490,-567.74,0.00013698,2]
[354042353,1740198632500,-500.0,0.00013698,2]
[354042354,1740198632510,-500.0,0.00013698,2]
[354042355,1740198632521,-500.0,0.00013698,2]
[354042356,1740198632530,-500.0,0.00013698,2]
[354042357,1740198632539,-500.0,0.00013698,2]
[354042358,1740198632548,-500.0,0.00013698,2]
[354042359,1740198632557,-834.58,0.00013698,2]
[354042360,1740198632566,-500.0,0.00013698,2]
[354042361,1740198632575,-500.0,0.00013698,2]
[354042362,1740198632585,-500.0,0.00013698,2]
[354042363,1740198632594,-2023.07,0.00013698,2]
[354042364,1740198632603,-170.979503,0.00013699,2]
[354042365,1740198632612,-500.0,0.0001378,2]
[354042366,1740198632622,-5807.91,0.0001378,2]
[354042367,1740198632631,-500.0,0.0001378,2]
[354042368,1740198632641,-500.0,0.0001378,2]
[354042369,1740198632651,-1034.75,0.0001378,2]
[354042370,1740198632660,-500.0,0.0001378,2]
[354042371,1740198632671,-500.0,0.0001378,2]
[354042372,1740198632680,-617.24,0.0001378,2]
[354042373,1740198632689,-500.0,0.0001378,2]
[354042374,1740198632699,-811.98,0.0001378,2]
[354042375,1740198632708,-219.98914256,0.0001378,2]
[354042387,1740198640166,-2095.26085744,0.0001378,2]
[354042388,1740198640176,-500.0,0.0001378,2]
[354042389,1740198640187,-567.74,0.0001378,2]
[354042390,1740198640197,-500.0,0.0001378,2]
[354042391,1740198640206,-500.0,0.0001378,2]
[354042392,1740198640216,-500.0,0.0001378,2]
[354042393,1740198640225,-500.0,0.0001378,2]
[354042394,1740198640235,-834.58,0.0001378,2]
[354042395,1740198640245,-500.0,0.0001378,2]
[354042396,1740198640254,-500.0,0.0001378,2]
[354042397,1740198640263,-500.0,0.0001378,2]
[354042398,1740198640273,-2023.07,0.0001378,2]
[354042399,1740198640282,-1969.13696786,0.00013863,5]
[354042400,1740198640293,-500.0,0.00013863,2]
[354042401,1740198640302,-5807.91,0.00013863,2]
[354042402,1740198640311,-500.0,0.00013863,2]
[354042403,1740198640321,-500.0,0.00013863,2]
[354042404,1740198640330,-1034.75,0.00013863,2]
[354042405,1740198640339,-500.0,0.00013863,2]
[354042406,1740198640349,-500.0,0.00013863,2]
[354042407,1740198640358,-617.24,0.00013863,2]
[354042408,1740198640367,-500.0,0.00013863,2]
[354042409,1740198640376,-811.98,0.00013863,2]
[354042410,1740198640385,-2315.25,0.00013863,2]
[354042411,1740198640396,-500.0,0.00013863,2]
[354042412,1740198640407,-567.74,0.00013863,2]
[354042413,1740198640416,-500.0,0.00013863,2]
[354042414,1740198640425,-500.0,0.00013863,2]
[354042415,1740198640436,-500.0,0.00013863,2]
[354042416,1740198640448,-500.0,0.00013863,2]
[354042417,1740198640459,-834.58,0.00013863,2]
[354042418,1740198640468,-500.0,0.00013863,2]
[354042419,1740198640478,-500.0,0.00013863,2]
[354042420,1740198640487,-500.0,0.00013863,2]
[354042421,1740198640496,-2023.07,0.00013863,2]
[354042422,1740198640505,-199.83561836,0.00013927,2]
[354042423,1740198640515,-557.1188801,0.00013935,2]
[354042424,1740198640523,-153.710822,0.00013935,2]
[354042425,1740198640532,-12924.89674434,0.00013945,2]
[354042426,1740198640541,-500.0,0.00013945,2]
[354042427,1740198640551,-9345.216051,0.00013945,4]
[354042428,1740198640560,-5807.91,0.00013945,2]
[354042429,1740198640569,-422.92960521,0.00013945,2]
[354042430,1740198640577,-500.0,0.00013945,2]
[354042431,1740198640586,-1034.75,0.00013945,2]
[354042432,1740198640595,-500.0,0.00013945,2]
[354042433,1740198640604,-500.0,0.00013945,2]
[354042434,1740198640613,-617.24,0.00013945,2]
[354042435,1740198640622,-500.0,0.00013945,2]
[354042436,1740198640631,-811.98,0.00013945,2]
[354042437,1740198640639,-500.0,0.00013945,2]
[354042438,1740198640649,-2315.25,0.00013945,2]
[354042439,1740198640658,-567.74,0.00013945,2]
[354042440,1740198640667,-500.0,0.00013945,2]
[354042441,1740198640676,-500.0,0.00013945,2]
[354042442,1740198640685,-500.0,0.00013945,2]
[354042443,1740198640695,-500.0,0.00013945,2]
[354042444,1740198640710,-834.58,0.00013945,2]
[354042445,1740198640727,-500.0,0.00013945,2]
[354042446,1740198640736,-500.0,0.00013945,2]
[354042447,1740198640746,-500.0,0.00013945,2]
[354042448,1740198640755,-2023.07,0.00013945,2]
[354042449,1740198640765,-464.7,0.00014027,2]
[354042450,1740198640776,-5807.91,0.00014027,2]
[354042451,1740198640786,-500.0,0.00014027,2]
[354042452,1740198640795,-1034.75,0.00014027,2]
[354042453,1740198640804,-500.0,0.00014027,2]
[354042454,1740198640814,-500.0,0.00014027,2]
[354042455,1740198640823,-617.24,0.00014027,2]
[354042456,1740198640831,-500.0,0.00014027,2]
[354042457,1740198640840,-811.98,0.00014027,2]
[354042458,1740198640849,-500.0,0.00014027,2]
[354042459,1740198640859,-2315.25,0.00014027,2]
[354042460,1740198640870,-567.74,0.00014027,2]
[354042461,1740198640880,-500.0,0.00014027,2]
[354042462,1740198640890,-500.0,0.00014027,2]
[354042463,1740198640899,-500.0,0.00014027,2]
[354042464,1740198640909,-500.0,0.00014027,2]
[354042465,1740198640919,-834.58,0.00014027,2]
[354042466,1740198640928,-500.0,0.00014027,2]
[354042467,1740198640937,-500.0,0.00014027,2]
[354042468,1740198640946,-500.0,0.00014027,2]
[354042469,1740198640955,-2023.07,0.00014027,2]
[354042470,1740198640964,-500.0,0.00014042,2]
[354042471,1740198640974,-500.0,0.00014075,2]
[354042472,1740198640983,-501.43373885,0.00014079,2]
[354042473,1740198640992,-500.0,0.00014079,2]
[354042474,1740198641000,-500.77963658,0.00014107,2]
[354042475,1740198641010,-500.2242057,0.00014107,2]
[354042476,1740198641019,-500.0,0.00014107,2]
[354042477,1740198641028,-501.92147896,0.00014107,2]
[354042478,1740198641037,-500.0,0.00014107,2]
[354042479,1740198641046,-500.0,0.00014107,2]
[354042480,1740198641055,-500.0,0.00014107,2]
[354042481,1740198641064,-500.0,0.00014107,2]
[354042482,1740198641074,-5807.91,0.00014109,2]
[354042483,1740198641083,-500.0,0.00014109,2]
[354042484,1740198641092,-1034.75,0.00014109,2]
[354042485,1740198641102,-500.0,0.00014109,2]
[354042486,1740198641111,-500.0,0.00014109,2]
[354042487,1740198641120,-617.24,0.00014109,2]
[354042488,1740198641130,-500.0,0.00014109,2]
[354042489,1740198641139,-811.98,0.00014109,2]
[354042490,1740198641148,-500.0,0.00014109,2]
[354042491,1740198641158,-2315.25,0.00014109,2]
[354042492,1740198641167,-567.74,0.00014109,2]
[354042493,1740198641176,-500.0,0.00014109,2]
[354042494,1740198641186,-341.18328741,0.00014109,2]
[354042495,1740198641195,-575.1,0.00014109,2]
[354042496,1740198641204,-500.0,0.00014109,2]
[354042497,1740198641213,-834.58,0.00014109,2]
[354042498,1740198641223,-500.0,0.00014109,2]
[354042499,1740198641232,-500.0,0.00014109,2]
[354042500,1740198641241,-500.0,0.00014109,2]
[354042501,1740198641251,-2023.07,0.00014109,2]
[354042502,1740198641260,-179.2650934,0.00014113,2]
[354042503,1740198641269,-500.0,0.0001419,2]
[354042504,1740198641278,-500.0,0.0001419,2]
[354042505,1740198641288,-500.0,0.0001419,2]
[354042506,1740198641297,-349.84887682,0.0001419,2]
[354042507,1740198641306,-230.43133477,0.0001419,2]
[354042508,1740198641315,-5807.91,0.00014191,2]
[354042509,1740198641324,-500.0,0.00014191,2]
[354042510,1740198641333,-1034.75,0.00014191,2]
[354042511,1740198641343,-500.0,0.00014191,2]
[354042512,1740198641352,-500.0,0.00014191,2]
[354042513,1740198641361,-617.24,0.00014191,2]
[354042514,1740198641370,-500.0,0.00014191,2]
[354042515,1740198641380,-811.98,0.00014191,2]
[354042516,1740198641389,-500.0,0.00014191,2]
[354042517,1740198641398,-2315.25,0.00014191,2]
[354042518,1740198641408,-567.74,0.00014191,2]
[354042519,1740198641418,-500.0,0.00014191,2]
[354042520,1740198641428,-500.0,0.00014191,2]
[354042521,1740198641437,-834.58,0.00014191,2]
[354042522,1740198641448,-500.0,0.00014191,2]
[354042523,1740198641459,-500.0,0.00014191,2]
[354042524,1740198641468,-500.0,0.00014191,2]
[354042525,1740198641479,-2023.07,0.00014191,2]
[354042526,1740198641491,-5807.91,0.00014273,2]
[354042527,1740198641502,-500.0,0.00014273,2]
[354042528,1740198641511,-1034.75,0.00014273,2]
[354042529,1740198641522,-500.0,0.00014273,2]
[354042530,1740198641532,-500.0,0.00014273,2]
[354042531,1740198641543,-617.24,0.00014273,2]
[354042532,1740198641553,-500.0,0.00014273,2]
[354042533,1740198641563,-811.98,0.00014273,2]
[354042534,1740198641572,-500.0,0.00014273,2]
[354042535,1740198641582,-2315.25,0.00014273,2]
[354042536,1740198641591,-567.74,0.00014273,2]
[354042537,1740198641600,-500.0,0.00014273,2]
[354042538,1740198641610,-500.0,0.00014273,2]
[354042539,1740198641619,-834.58,0.00014273,2]
[354042540,1740198641629,-500.0,0.00014273,2]
[354042541,1740198641638,-500.0,0.00014273,2]
[354042542,1740198641647,-500.0,0.00014273,2]
[354042543,1740198641656,-2023.07,0.00014273,2]
[354042544,1740198641666,-5807.91,0.00014356,2]
[354042545,1740198641675,-500.0,0.00014356,2]
[354042546,1740198641684,-1034.75,0.00014356,2]
[354042547,1740198641693,-500.0,0.00014356,2]
[354042548,1740198641703,-500.0,0.00014356,2]
[354042549,1740198641712,-617.24,0.00014356,2]
[354042550,1740198641720,-500.0,0.00014356,2]
[354042551,1740198641827,-811.98,0.00014356,2]
[354042552,1740198641838,-500.0,0.00014356,2]
[354042553,1740198641847,-2315.25,0.00014356,2]
[354042554,1740198641857,-567.74,0.00014356,2]
[354042555,1740198641866,-500.0,0.00014356,2]
[354042556,1740198641876,-582.64,0.00014356,2]
[354042557,1740198641885,-834.58,0.00014356,2]
[354042558,1740198641895,-500.0,0.00014356,2]
[354042559,1740198641904,-500.0,0.00014356,2]
[354042560,1740198641913,-500.0,0.00014356,2]
[354042561,1740198641922,-2023.07,0.00014356,2]
[354042562,1740198641932,-1970.0,0.00014377,2]
[354042563,1740198641941,-538.0,0.00014377,2]
[354042564,1740198641950,-2288.0,0.00014377,2]
[354042565,1740198641959,-179.71246006,0.00014415,2]
[354042566,1740198641968,-5807.91,0.00014438,2]
[354042567,1740198641978,-500.0,0.00014438,2]
[354042568,1740198641987,-1034.75,0.00014438,2]
[354042569,1740198641996,-500.0,0.00014438,2]
[354042570,1740198642005,-500.0,0.00014438,2]
[354042571,1740198642015,-617.24,0.00014438,2]
[354042572,1740198642024,-500.0,0.00014438,2]
[354042573,1740198642034,-811.98,0.00014438,2]
[354042574,1740198642044,-500.0,0.00014438,2]
[354042575,1740198642054,-2315.25,0.00014438,2]
[354042576,1740198642063,-567.74,0.00014438,2]
[354042577,1740198642073,-512.80575476,0.00014438,2]
[354042578,1740198642082,-834.58,0.00014438,2]
[354042579,1740198642091,-500.0,0.00014438,2]
[354042580,1740198642100,-500.0,0.00014438,2]
[354042581,1740198642110,-500.0,0.00014438,2]
[354042582,1740198642119,-2023.07,0.00014438,2]
[354042583,1740198642129,-545.14232685,0.0001452,2]
[354042609,1740199459521,214.835878,9.041e-05,2]
[354042613,1740199556121,-187.174566,0.00012694,2]
[354042614,1740199556144,-300.0,0.00012821,2]
[354042615,1740199556166,-15.07949693,0.00012822,2]
[354042616,1740199635085,-300.0,0.00012821,2]
[354042617,1740199635106,-8042.7724665,0.00012822,2]
[354042618,1740199641133,-1521.86346293,0.00012822,2]
[354042619,1740199746100,-159.60608659,0.00012594,2]
[354042620,1740199746124,-101.07097317,0.00012594,2]
[354042621,1740199746146,-2202.39629214,0.00012822,2]
[354042622,1740199746167,-187.174566,0.00012863,2]
[354042623,1740199746187,-292.6044012,0.00012886,2]
[354042624,1740199746206,-154.00808152,0.00012932,2]
[354042625,1740199746227,-300.0,0.00012999,2]
[354042626,1740199746246,-121710.26797255,0.00013,2]
[354042657,1740199832203,-480.81,0.00012684,2]
[354042658,1740199832215,-616.0,0.00012684,2]
[354042659,1740199832260,-308.9856429,0.00012684,2]
[354042660,1740199832269,-300.0,0.00012999,2]
[354042661,1740199832278,-30728.97873638,0.00013,2]
[354042662,1740199832288,-187.174566,0.00013032,2]
[354042663,1740199832297,-187.174566,0.00013201,2]
[354042664,1740199832306,-500.0,0.00013697,2]
[354042665,1740199832315,-500.0,0.00013697,2]
[354042666,1740199832325,-349.84887682,0.00013697,2]
[354042667,1740199832334,-153.30616588,0.00013697,2]
[354042668,1740199832346,-346.69383412,0.00013697,2]
[354042669,1740199832355,-230.43133477,0.00013697,2]
[354042670,1740199832364,-502.52093788,0.00013698,2]
[354042671,1740199832374,-533.61907346,0.00013698,2]
[354042672,1740199832383,-502.36096622,0.00013698,2]
[354042674,1740199832392,-500.0,0.00013698,2]
[354042676,1740199832402,-505.022213,0.00013698,2]
[354042678,1740199832411,-501.9855279,0.00013698,2]
[354042680,1740199832420,-502.4597055,0.00013698,2]
[354042682,1740199832430,-502.25881126,0.00013698,2]
[354042684,1740199832439,-501.04726868,0.00013698,2]
[354042686,1740199832449,-532.20227489,0.00013698,2]
[354042688,1740199832458,-500.0,0.00013698,2]
[354042690,1740199832466,-503.35949374,0.00013698,2]
[354042692,1740199832476,-503.13410827,0.00013698,2]
[354042694,1740199832485,-500.0,0.00013698,2]
[354042695,1740199832495,-500.0,0.00013698,2]
[354042697,1740199832504,-500.0,0.00013698,2]
[354042699,1740199832513,-512.98061299,0.00013698,2]
[354042701,1740199832523,-500.0,0.00013698,2]
[354042702,1740199832532,-500.0,0.00013698,2]
[354042704,1740199832541,-505.97894725,0.00013698,2]
[354042705,1740199832551,-506.15338275,0.00013698,2]
[354042707,1740199832560,-503.56878229,0.00013698,2]
[354042709,1740199832569,-316.45427354,0.00013698,2]
[354042710,1740199832581,-186.69412679,0.00013698,2]
[354042712,1740199832590,-503.06136513,0.00013698,2]
[354042714,1740199832599,-502.42748009,0.00013698,2]
[354042715,1740199832608,-502.0054615,0.00013698,2]
[354042717,1740199832618,-502.72672686,0.00013698,2]
[354042719,1740199832627,-500.0,0.00013698,2]
[354042721,1740199832636,-502.83367553,0.00013698,2]
[354042722,1740199832645,-500.0,0.00013698,2]
[354042724,1740199832654,-505.3587375,0.00013698,2]
[354042726,1740199832663,-503.77374354,0.00013698,2]
[354042727,1740199832672,-504.27897101,0.00013698,2]
[354042729,1740199832681,-419.60531546,0.00013698,2]
[354042731,1740199832690,-505.57130044,0.00013698,2]
[354042732,1740199832699,-503.98355006,0.00013698,2]
[354042734,1740199832709,-500.0,0.00013698,2]
[354042736,1740199832718,-503.14023581,0.00013698,2]
[354042740,1740199832830,-500.0,0.00013698,2]
[354042741,1740199832839,-501.53149983,0.00013698,2]
[354042742,1740199832848,-501.94020903,0.00013698,2]
[354042743,1740199832857,-504.14866458,0.00013698,2]
[354042744,1740199832867,-263.3498283,0.00013698,2]
[354042745,1740199832876,-501.2202655,0.00013698,2]
[354042746,1740199832885,-500.0,0.00013698,2]
[354042747,1740199832894,-502.01208196,0.00013698,2]
[354042748,1740199832904,-503.34225498,0.00013698,2]
[354042749,1740199832913,-500.0,0.00013698,2]
[354042750,1740199832922,-500.0,0.00013698,2]
[354042751,1740199832931,-500.0,0.00013698,2]
[354042752,1740199832940,-500.0,0.00013698,2]
[354042753,1740199832949,-500.0,0.00013698,2]
[354042754,1740199832958,-267.72724881,0.00013698,2]
[354042755,1740199832997,-64.7452402,0.00013698,2]
[354042762,1740199838152,-55.80600699,0.00013698,2]
[354042767,1740199840419,-114.65068611,0.00013698,2]
[354042768,1740199840429,-500.0,0.00013698,2]
[354042769,1740199840438,-502.28291121,0.00013698,2]
[354042770,1740199840448,-500.0,0.00013698,2]
[354042771,1740199840457,-500.0,0.00013698,2]
[354042772,1740199840467,-500.0,0.00013698,2]
[354042773,1740199840477,-504.10493803,0.00013698,2]
[354042774,1740199840486,-500.0,0.00013698,2]
[354042775,1740199840496,-500.0,0.00013698,2]
[354042776,1740199840506,-500.0,0.00013698,2]
[354042777,1740199840515,-500.0,0.00013698,2]
[354042778,1740199840524,-500.0,0.00013698,2]
[354042779,1740199840534,-500.0,0.00013698,2]
[354042780,1740199840543,-500.0,0.00013698,2]
[354042781,1740199840552,-500.0,0.00013698,2]
[354042782,1740199840562,-500.0,0.00013698,2]
[354042783,1740199840571,-500.0,0.00013698,2]
[354042784,1740199840580,-500.0,0.00013698,2]
[354042785,1740199840589,-500.0,0.00013698,2]
[354042786,1740199840598,-500.0,0.00013698,2]
[354042787,1740199840607,-502.0662777,0.00013698,2]
[354042788,1740199840616,-500.0,0.00013698,2]
[354042789,1740199840625,-500.0,0.00013698,2]
[354042790,1740199840635,-500.0,0.00013698,2]
[354042791,1740199840644,-500.0,0.00013698,2]
[354042792,1740199840653,-500.0,0.00013698,2]
[354042793,1740199840663,-500.0,0.00013698,2]
[354042794,1740199840672,-500.0,0.00013698,2]
[354042795,1740199840681,-510.16121033,0.00013698,2]
[354042796,1740199840693,-500.0,0.00013698,2]
[354042797,1740199840703,-500.0,0.00013698,2]
[354042798,1740199840713,-500.0,0.00013698,2]
[354042799,1740199840722,-502.89447481,0.00013698,2]
[354042800,1740199840731,-500.0,0.00013698,2]
[354042801,1740199840740,-500.0,0.00013698,2]
[354042802,1740199840750,-388.06481118,0.00013698,2]
[354042803,1740199840768,-500.0,0.00013698,2]
[354042804,1740199840779,-500.0,0.00013698,2]
[354042805,1740199840788,-500.0,0.00013698,2]
[354042806,1740199840798,-500.0,0.00013698,2]
[354042807,1740199840808,-500.0,0.00013698,2]
[354042808,1740199840817,-500.0,0.00013698,2]
[354042809,1740199840829,-500.0,0.00013698,2]
[354042810,1740199840838,-502.33056316,0.00013698,2]
[354042811,1740199840847,-500.0,0.00013698,2]
[354042812,1740199840857,-500.0,0.00013698,2]
[354042813,1740199840866,-500.0,0.00013698,2]
[354042814,1740199840877,-500.0,0.00013698,2]
[354042815,1740199840886,-500.0,0.00013698,2]
[354042816,1740199840895,-500.0,0.00013698,2]
[354042817,1740199840906,-502.32853479,0.00013698,2]
[354042818,1740199840916,-501.74288815,0.00013698,2]
[354042819,1740199840927,-500.0,0.00013698,2]
[354042820,1740199840939,-500.0,0.00013698,2]
[354042821,1740199840950,-501.66672248,0.00013698,2]
[354042822,1740199840959,-500.0,0.00013698,2]
[354042823,1740199840970,-500.0,0.00013698,2]
[354042824,1740199840980,-500.0,0.00013698,2]
[354042825,1740199840990,-500.0,0.00013698,2]
[354042826,1740199841000,-500.0,0.00013698,2]
[354042827,1740199841009,-500.0,0.00013698,2]
[354042828,1740199841019,-500.0,0.00013698,2]
[354042829,1740199841028,-5446.61,0.00013698,2]
[354042830,1740199841038,-500.0,0.00013698,2]
[354042831,1740199841047,-500.0,0.00013698,2]
[354042832,1740199841056,-969.35,0.00013698,2]
[354042833,1740199841066,-500.0,0.00013698,2]
[354042834,1740199841077,-765.15,0.00013698,2]
[354042835,1740199841093,-2160.5,0.00013698,2]
[354042836,1740199841103,-500.0,0.00013698,2]
[354042837,1740199841113,-597.22,0.00013698,2]
[354042838,1740199841123,-500.0,0.00013698,2]
[354042839,1740199841133,-592.58,0.00013698,2]
[354042840,1740199841144,-500.0,0.00013698,2]
[354042841,1740199841155,-500.0,0.00013698,2]
[354042842,1740199841166,-500.0,0.00013698,2]
[354042843,1740199841175,-500.0,0.00013698,2]
[354042844,1740199841187,-500.0,0.00013698,2]
[354042845,1740199841197,-500.0,0.00013698,2]
[354042846,1740199841206,-500.0,0.00013698,2]
[354042847,1740199841216,-500.0,0.00013698,2]
[354042848,1740199841226,-500.0,0.00013698,2]
[354042849,1740199841236,-500.0,0.00013698,2]
[354042850,1740199841247,-500.0,0.00013698,2]
[354042851,1740199841256,-500.0,0.00013698,2]
[354042852,1740199841265,-1938.78,0.00013698,2]
[354042853,1740199841274,-500.0,0.00013698,2]
[354042854,1740199841283,-500.0,0.00013698,2]
[354042855,1740199841292,-500.0,0.00013698,2]
[354042856,1740199841303,-810.0,0.00013698,2]
[354042857,1740199841312,-170.979503,0.00013699,2]
[354042858,1740199841322,-500.0,0.0001378,2]
[354042859,1740199841331,-500.0,0.0001378,2]
[354042860,1740199841340,-500.0,0.0001378,2]
[354042861,1740199841350,-500.0,0.0001378,2]
[354042862,1740199841359,-5446.61,0.0001378,2]
[354042863,1740199841368,-447.9986832,0.0001378,2]
[354042864,1740199841377,-500.0,0.0001378,2]
[354042865,1740199841387,-969.35,0.0001378,2]
[354042866,1740199841396,-500.0,0.0001378,2]
[354042867,1740199841405,-765.15,0.0001378,2]
[354042868,1740199841415,-2160.5,0.0001378,2]
[354042869,1740199841424,-500.0,0.0001378,2]
[354042870,1740199841433,-597.22,0.0001378,2]
[354042871,1740199841443,-500.0,0.0001378,2]
[354042872,1740199841452,-592.58,0.0001378,2]
[354042873,1740199841461,-500.0,0.0001378,2]
[354042874,1740199841470,-500.0,0.0001378,2]
[354042875,1740199841479,-500.0,0.0001378,2]
[354042876,1740199841488,-500.0,0.0001378,2]
[354042877,1740199841497,-500.0,0.0001378,2]
[354042878,1740199841506,-500.0,0.0001378,2]
[354042879,1740199841514,-1938.78,0.0001378,2]
[354042880,1740199841524,-500.0,0.0001378,2]
[354042881,1740199841533,-810.0,0.0001378,2]
[354042882,1740199841542,-500.77963658,0.00013829,2]
[354042883,1740199841551,-500.0,0.00013863,2]
[354042884,1740199841561,-500.0,0.00013863,2]
[354042885,1740199841570,-464.7,0.00013863,2]
[354042886,1740199841579,-500.0,0.00013863,2]
[354042887,1740199841588,-5446.61,0.00013863,2]
[354042888,1740199841597,-500.0,0.00013863,2]
[354042889,1740199841609,-969.35,0.00013863,2]
[354042890,1740199841619,-500.0,0.00013863,2]
[354042891,1740199841628,-765.15,0.00013863,2]
[354042892,1740199841637,-2160.5,0.00013863,2]
[354042893,1740199841646,-500.0,0.00013863,2]
[354042894,1740199841656,-597.22,0.00013863,2]
[354042895,1740199841665,-500.0,0.00013863,2]
[354042896,1740199841675,-592.58,0.00013863,2]
[354042897,1740199841684,-500.0,0.00013863,2]
[354042898,1740199841693,-500.0,0.00013863,2]
[354042899,1740199841703,-500.0,0.00013863,2]
[354042900,1740199841713,-500.0,0.00013863,2]
[354042901,1740199841723,-500.0,0.00013863,2]
[354042902,1740199841733,-500.0,0.00013863,2]
[354042903,1740199841743,-1938.78,0.00013863,2]
[354042904,1740199841754,-500.0,0.00013863,2]
[354042905,1740199841764,-810.0,0.00013863,2]
[354042906,1740199841773,-500.0,0.00013863,2]
[354042907,1740199841784,-501.87674577,0.000139,2]
[354042908,1740199841793,-500.0,0.00013906,2]
[354042909,1740199841802,-501.92147896,0.00013906,2]
[354042910,1740199841812,-500.0,0.00013906,2]
[354042911,1740199841822,-500.0,0.00013906,2]
[354042912,1740199841835,-500.2242057,0.00013906,2]
[354042913,1740199841844,-500.0,0.00013906,2]
[354042914,1740199841854,-500.0,0.00013906,2]
[354042915,1740199841863,-500.0,0.00013906,2]
[354042916,1740199841872,-500.0,0.00013906,2]
[354042917,1740199841881,-501.43373885,0.00013919,2]
[354042918,1740199841891,-500.0,0.00013922,2]
[354042919,1740199841900,-9345.21805098,0.00013945,4]
[354042920,1740199841912,-500.0,0.00013945,2]
[354042921,1740199841923,-500.0,0.00013945,2]
[354042922,1740199841933,-500.0,0.00013945,2]
[354042923,1740199841943,-5446.61,0.00013945,2]
[354042924,1740199841953,-500.0,0.00013945,2]
[354042925,1740199841963,-969.35,0.00013945,2]